Cogmind - Beta 14 @@@ ROGUE MODE // 2024.08.29 @ 20:07:47 Player: Daffa0360 Result: Self-destructed Performance ------------- Evolutions (5) 2500 Regions Visited (5) 1000 Robots Destroyed (26) 130 Value Destroyed (798) 798 Prototype IDs (20) 400 Alien Tech Used (0) 0 Bonus (300) 300 TOTAL SCORE: 5128 Bonus ------- Registered with UFD 300 Cogmind --------- Core Integrity 868/1000 Matter 270/300 Energy 150/150 System Corruption 15% Temperature Cool (0) Movement Core (200) Ox3 Location -5/Factory Parts ------- > --- POWER (2) -------- Micro Fission Core > --- PROPULSION (4) --- (None) > --- UTILITY (9) ------ Surveybot 17 Chip Recoil Nullifier > --- WEAPON (2) ------- Power Sword Power Sword > --- INVENTORY (5) ---- Scrap Suit Advanced Signal Interpreter Dirty Datajack (20) DRS Beacon (Ready) Peak State ------------ > --- POWER ------------ Micro Fission Core Micro Fission Core > --- PROPULSION ------- VSS Leg > --- UTILITY ---------- Small Storage Unit Surveybot 17 Chip Recoil Nullifier Makeshift Hacking Suite > --- WEAPON ----------- Power Sword Power Sword > --- INVENTORY -------- Micro Fission Core Scrap Suit Advanced Signal Interpreter Thermal Shield Makeshift System Restoration Module Dirty Datajack DRS Beacon [Rating: 47] Favorites ----------- Power Makeshift Power Source Engine Makeshift Power Source Power Core Micro Fission Core Propulsion Makeshift Leg Treads Spiked Treads Leg Makeshift Leg Wheel Compact Wheel Utility Small Storage Unit Device Sensor Array Storage Small Storage Unit Processor Surveybot 17 Chip Hackware Makeshift Hacking Suite Protection Makeshift Light Armor Plating Weapon Heavy Hammer Energy Cannon Subdweller Beam Cannon Ballistic Gun Light Assault Rifle Launcher Subdweller Shrapnel Launcher Impact Weapon Heavy Hammer Slashing Weapon Power Sword Piercing Weapon Spear Special Melee Weapon Dirty Datajack Build | -11 -10 -10 -7 -7 -5 ------- Run | Yrd Mat Sub Rec Scr Fac Slots Evolved 10 | . . . . . 10 Power 1 | . . . . . 1 Propulsion 2 | . . . . . 2 Utility 7 | . . . . . 7 Weapon . | . . . . . . Parts Attached 50 | 1 1 33 2 8 5 Power 5 | . . 2 . 1 2 Engine 3 | . . 2 . 1 . Core 2 | . . . . . 2 Reactor . | . . . . . . Propulsion 9 | . . 6 1 2 . Treads 1 | . . 1 . . . Leg 4 | . . 1 1 2 . Wheel 4 | . . 4 . . . Hover . | . . . . . . Flight . | . . . . . . Utility 21 | 1 1 14 . 2 3 Device 9 | 1 1 5 . 1 1 Storage 2 | . . 1 . 1 . Processor 1 | . . . . . 1 Hackware 1 | . . . . . 1 Protection 8 | . . 8 . . . Artifact . | . . . . . . Weapon 15 | . . 11 1 3 . Energy Gun . | . . . . . . Energy Cannon 2 | . . 2 . . . Ballistic Gun . | . . . . . . Ballistic Cannon . | . . . . . . Launcher 3 | . . 3 . . . Special Weapon . | . . . . . . Impact Weapon 3 | . . 3 . . . Slashing Weapon 5 | . . 3 . 2 . Piercing Weapon 1 | . . . 1 . . Special Melee Weapon 1 | . . . . 1 . Unidentified Prototypes . | . . . . . . Parts Lost 11 | . . 5 . . 6 Power 2 | . . 1 . . 1 Propulsion 5 | . . 3 . . 2 Utility 4 | . . 1 . . 3 Weapon . | . . . . . . Highest Loss Streak 4 | . . 3 . . 4 To Critical Strikes . | . . . . . . Average Slot Usage (%) 67 | . 100 86 57 55 49 Engine 8 | . 14 12 7 6 1 Treads 1 | . . 3 . . . Leg 11 | . 28 4 12 14 6 Wheel 4 | . . 13 . . . Device 3 | . 14 6 . 1 4 Storage 8 | . 14 12 7 6 4 Protection 10 | . . 7 14 13 . Ballistic Gun 2 | . 28 1 . . . Launcher 1 | . . 3 . . . Impact Weapon 6 | . . 14 7 2 . Slashing Weapon 5 | . . 4 2 5 11 Piercing Weapon 1 | . . . 4 2 . Peak Build Rating 47 | 7 8 45 44 44 47 Average Rating 31 | 6 7 19 43 39 42 On Entrance 22 | 6 7 8 41 44 29 Naked Turns . | . . . . . . Heaviest Build 65 | 13 13 65 57 56 22 Greatest Support 36 | 20 20 36 32 32 32 Greatest Overweight (x) 7 | . . 7 2 1 1 Average Overweight (x) . | . . . 1 . . Largest Inventory Capacity 8 | 8 8 8 8 8 8 Average Capacity 7 | 8 8 7 8 7 7 Most Carried 8 | 8 8 8 8 8 8 Average Carried 7 | 6 7 7 8 6 7 Final Capacity 8 | 8 8 8 8 8 5 Final Carried 8 | 7 8 8 8 8 5 Class Distribution -------------------- 87% | Mutant 12% | Derelict-Mutant Dominant Class ---------------- Mutant | -10/Materials Mutant | -10/Subcaves Mutant | -7/Recycling Mutant | -7/Scraptown Mutant | -5/Factory Resources | -11 -10 -10 -7 -7 -5 ----------- Run | Yrd Mat Sub Rec Scr Fac Matter Collected 913 | 244 14 565 20 10 60 Remotely . | . . . . . . Salvage Created 846 | 176 50 560 . . 60 Parts 55 | 13 4 37 . . 1 Haulers Intercepted . | . . . . . . Recyclers Shooed 1 | . 1 . . . . Parts Field Recycled . | . . . . . . Retrieved Matter . | . . . . . . Parts Self-Destructed 10 | . . 10 . . . Prevented . | . . . . . . Kills | -11 -10 -10 -7 -7 -5 ------- Run | Yrd Mat Sub Rec Scr Fac Combat Hostiles Destroyed 20 | . . 19 . . 1 Melee 5 | . . 4 . . 1 Cannons 2 | . . 2 . . . AOE 7 | . . 7 . . . Classes Destroyed 7 | 2 . 4 . . 1 Tunneler 4 | 4 . . . . . Recycler 2 | 1 1 . . . . Swarmer 2 | . . 2 . . . Grunt 1 | . . 1 . . . Sentry 1 | . . . . . 1 Artisan 1 | . . 1 . . . Subdweller 16 | . . 16 . . . Best Kill Streak 3 | 3 1 3 . . 1 Combat Bots Only 3 | . . 3 . . 1 Max Kills in Single Turn 2 | 1 1 2 . . 1 Gunslinging . | . . . . . . Exploded 2 | . . 2 . . . Melee 1 | . . 1 . . 1 Uniques/NPCs Destroyed . | . . . . . . Combat | -11 -10 -10 -7 -7 -5 -------- Run | Yrd Mat Sub Rec Scr Fac Hostile Shots Fired 109 | . . 90 . . 19 Missed 23 | . . 19 . . 4 Damage Taken 1799 | . . 1275 . . 524 Core 361 | . . 229 . . 132 Absorbed by Shields . | . . . . . . Core Remaining (%) 54 | 100 . . . 8 . Volleys Fired 40 | 17 2 21 . . . Largest 2 | 2 2 1 . . . Hottest 80 | 40 40 80 . . . Shots Fired 58 | 34 4 20 . . . Gun 38 | 34 4 . . . . Cannon 7 | . . 7 . . . Launcher 13 | . . 13 . . . Special . | . . . . . . Kinetic 51 | 34 4 13 . . . Thermal 7 | . . 7 . . . Explosive . | . . . . . . Electromagnetic . | . . . . . . Robot Hit Streak 7 | 5 3 7 . . . Robot Miss Streak 2 | 2 1 2 . . . Penetration Max . | . . . . . . Secondary Targets . | . . . . . . Shots Hit Robots 72 | 20 3 38 . . 11 Core Hits 33 | 10 3 16 . . 4 Critical Kills 2 | . . 2 . . . Critical Parts Destroyed 7 | . . 7 . . . Critical Strikes 14 | . . 12 . . 2 Smash 12 | . . 12 . . . Sever 2 | . . . . . 2 Melee Attacks 119 | . . 94 8 . 17 Impact 96 | . . 89 7 . . Slashing 23 | . . 5 1 . 17 Piercing . | . . . . . . Sneak Attacks . | . . . . . . Combat Hostiles . | . . . . . . Follow-up Attacks 5 | . . 3 . . 2 Damage Inflicted 2838 | 151 24 2287 . . 376 Guns 175 | 151 24 . . . . Cannons 110 | . . 110 . . . Explosions 1082 | . . 1082 . . . Melee 1471 | . . 1095 . . 376 Ramming . | . . . . . . Kinetic 1257 | 151 24 1082 . . . Thermal 110 | . . 110 . . . Explosive . | . . . . . . Electromagnetic . | . . . . . . Impact 1095 | . . 1095 . . . Slashing 376 | . . . . . 376 Piercing . | . . . . . . Highest Corruption 15 | . . . . . 15 Average Corruption 13 | . . . . . 13 Corruption Purged . | . . . . . . Corruption Blocked . | . . . . . . Effects 1 | . . . . . 1 Message Errors 1 | . . . . . 1 Overload Shots . | . . . . . . Overflow Damage 327 | . . 295 . . 32 Projectiles . | . . . . . . Explosions . | . . . . . . Melee 327 | . . 295 . . 32 Knockbacks 5 | . . 5 . . . Impact 5 | . . 5 . . . Kinetic . | . . . . . . Secondary . | . . . . . . Self-Inflicted Damage 24 | . . 24 . . . Shots 1 | . . 1 . . . Rammed . | . . . . . . Targets Rammed . | . . . . . . Kicked . | . . . . . . Crushed . | . . . . . . Highest Temperature 120 | . . 120 . . 8 Average Temperature 57 | . . 60 . . 8 Received Heat Transfer 294 | . . 186 . . 108 Siege Activations . | . . . . . . Robots Corrupted 6 | . . 6 . . . Combat Hostiles 6 | . . 6 . . . Parts Fried 4 | . . 4 . . . Impact Corruptions 9 | . . 9 . . . Robots Melted . | . . . . . . Combat Hostiles . | . . . . . . Parts Melted . | . . . . . . Heat Transferred 148 | . . 148 . . . Parts Sabotaged . | . . . . . . Parts Stolen . | . . . . . . Parts Stripped . | . . . . . . Power Chain Reactions . | . . . . . . Alert | -11 -10 -10 -7 -7 -5 ------- Run | Yrd Mat Sub Rec Scr Fac Peak Influence 61 | 25 51 . 35 . 61 Initial 28 | . 16 . 28 . . Average 21 | 16 24 . 15 . 30 Maximum Alert Level . | . . . . . . Low Security (%) 100 | 100 100 . 100 . 100 Level 1 . | . . . . . . Level 2 . | . . . . . . Level 3 . | . . . . . . Level 4 . | . . . . . . Level 5 . | . . . . . . High Security . | . . . . . . Max Security . | . . . . . . Squads Dispatched . | . . . . . . Investigation . | . . . . . . Extermination . | . . . . . . Reinforcement . | . . . . . . Assault . | . . . . . . Garrison . | . . . . . . Intercept . | . . . . . . Searches Triggered . | . . . . . . Construction Impeded . | . . . . . . Haulers Reinforced . | . . . . . . Active Scanning Responses . | . . . . . . Cargo Convoy Interrupts . | . . . . . . Stealth | -11 -10 -10 -7 -7 -5 --------- Run | Yrd Mat Sub Rec Scr Fac Distress Signals 1 | . . . . . 1 Communications Jammed . | . . . . . . Distress Signals . | . . . . . . Times Spotted 30 | . 4 22 . . 4 Peak Tracking Total 4 | . 2 2 . . 4 Tactical Retreats 3 | . 1 1 . . 1 Traps | -11 -10 -10 -7 -7 -5 ------- Run | Yrd Mat Sub Rec Scr Fac Traps Triggered 2 | . . 2 . . . Indirectly . | . . . . . . Trap Hack Attempts . | . . . . . . Triggered . | . . . . . . Disarmed . | . . . . . . Reprogrammed . | . . . . . . Reused 1 | . . . . . 1 Traps Extracted . | . . . . . . Installed 2 | . . . . 1 1 Triggered 2 | . . 1 . . 1 Most Traps Carried 1 | . . 1 1 1 1 Machines | -11 -10 -10 -7 -7 -5 ---------- Run | Yrd Mat Sub Rec Scr Fac Machines Disabled 1 | . . 1 . . . Max in Single Turn 1 | . . 1 . . . Machines Repaired . | . . . . . . Machines Dismantled . | . . . . . . Machines Sabotaged . | . . . . . . Overloaded Fab Kills . | . . . . . . Hacking | -11 -10 -10 -7 -7 -5 --------- Run | Yrd Mat Sub Rec Scr Fac Machines Accessed 12 | . 2 2 1 7 . Terminals 3 | . 2 . 1 . . Fabricators . | . . . . . . Repair Stations . | . . . . . . Recycling Units . | . . . . . . Scanalyzers . | . . . . . . Garrison Access . | . . . . . . Total Hacks 55 | . 3 5 2 45 . Successful 52 | . 2 5 . 45 . Failed 3 | . 1 . 2 . . Catastrophic 1 | . 1 . . . . Database Lockouts . | . . . . . . Manual 7 | . . . . 7 . Terminals 5 | . 3 . 2 . . Fabricators . | . . . . . . Repair Stations . | . . . . . . Recycling Units . | . . . . . . Scanalyzers . | . . . . . . Garrison Access . | . . . . . . Terminal Hacks 52 | . 2 5 . 45 . Record 48 | . . 4 . 44 . Branch Access Points 1 | . 1 . . . . Alert Level 1 | . 1 . . . . Derelict Proto ID Bank 2 | . . 1 . 1 . Fabricator Hacks . | . . . . . . Repair Station Hacks . | . . . . . . Recycling Unit Hacks . | . . . . . . Scanalyzer . | . . . . . . Garrison Access Hacks . | . . . . . . Unauthorized Hacks . | . . . . . . Terminals . | . . . . . . Fabricators . | . . . . . . Repair Stations . | . . . . . . Recycling Units . | . . . . . . Scanalyzers . | . . . . . . Garrison Access . | . . . . . . Data Cores Recovered . | . . . . . . Used . | . . . . . . Hacking Detections 2 | . 1 . 1 . . Full Trace Events . | . . . . . . Feedback Events . | . . . . . . Feedback Blocked . | . . . . . . Robot Schematics Acquired . | . . . . . . Robots Built . | . . . . . . Authchips . | . . . . . . Time . | . . . . . . Total Robot Build Rating . | . . . . . . Part Schematics Acquired . | . . . . . . Parts Built . | . . . . . . Authchips . | . . . . . . Time . | . . . . . . Total Part Build Rating . | . . . . . . Parts Repaired . | . . . . . . Time . | . . . . . . Parts Recycled . | . . . . . . Recycled Matter . | . . . . . . Retrieved Matter . | . . . . . . Retrieved Components . | . . . . . . Parts Scanalyzed . | . . . . . . Part Schematics Acquired . | . . . . . . Parts Damaged . | . . . . . . Bothacking | -11 -10 -10 -7 -7 -5 ------------ Run | Yrd Mat Sub Rec Scr Fac Used RIF Installer . | . . . . . . Robots Hacked . | . . . . . . Non-combat . | . . . . . . Combat . | . . . . . . Robot Hacks Applied . | . . . . . . Relay Couplers Released . | . . . . . . Fabnet Peak Effective % . | . . . . . . Robots Rewired . | . . . . . . Allies Hacked . | . . . . . . Hacks Repelled . | . . . . . . Allies | -11 -10 -10 -7 -7 -5 -------- Run | Yrd Mat Sub Rec Scr Fac Total Allies . | . . . . . . Largest Group . | . . . . . . Highest-Rated Group . | . . . . . . Highest-Rated Ally . | . . . . . . Total Orders . | . . . . . . Ally Attacks . | . . . . . . Total Damage . | . . . . . . Kills . | . . . . . . Allies Corrupted . | . . . . . . Allies Melted . | . . . . . . Intel | -11 -10 -10 -7 -7 -5 ------- Run | Yrd Mat Sub Rec Scr Fac Robot Analysis Total . | . . . . . . Derelict Logs Recovered 3 | . . 1 . 2 . Drone Launches . | . . . . . . Drone Recoveries . | . . . . . . Exploration | -11 -10 -10 -7 -7 -5 ------------- Run | Yrd Mat Sub Rec Scr Fac Turns Passed 13582 | 158 679 4415 853 7177 300 Spaces Moved 7160 | 62 171 2342 366 4075 144 Core 634 | . . 13 . 621 . Treads 647 | . . 647 . . . Legs 4808 | 62 171 611 366 3454 144 Wheels 1071 | . . 1071 . . . Hover . | . . . . . . Flight . | . . . . . . Fastest Speed 50 | 120 120 90 195 50 115 Average Speed 165 | 120 120 153 212 171 161 Slowest Speed 400 | 120 120 400 280 195 180 Overloaded Moves . | . . . . . . Propulsion Burnouts . | . . . . . . Robots Hopped . | . . . . . . Cave-ins Triggered . | . . . . . . Exploration Rate (%) 45 | 4 19 95 56 95 4 Regions Visited 5 Branch Regions 3 Pre-discovered Areas 6 | . . 1 . 5 . Known Exits Taken 1 | . . 1 . . . Unknown Exits Taken 4 | 1 1 . 1 1 . Scrap Searched 19 | . . 17 . 2 . Spaces Dug 16 | . . 6 7 . 3 Terrain Destroyed 179 | . . 169 7 . 3 Melee 16 | . . 6 7 . 3 Projectile 2 | . . 2 . . . AOE 161 | . . 161 . . . Terrain Rammed . | . . . . . . Walls Destroyed . | . . . . . . Machines Disabled . | . . . . . . Actions | -11 -10 -10 -7 -7 -5 --------- Run | Yrd Mat Sub Rec Scr Fac Total 8640 | 119 643 2995 428 4266 189 Wait 1198 | 35 461 484 53 147 18 Move 7155 | 61 170 2341 365 4074 144 Hop . | . . . . . . Pick Up 51 | 3 5 17 . 21 5 Fast Attach 10 | 1 . 6 2 . 1 Attach 18 | . 1 6 . 8 3 Detach . | . . . . . . Swap 22 | . . 21 . . 1 Drop 42 | 2 4 18 1 15 2 Fire 40 | 17 2 21 . . . Melee 102 | . . 81 7 . 14 Ram . | . . . . . . Kick . | . . . . . . Crush . | . . . . . . Escape Stasis . | . . . . . . Rewire . | . . . . . . Trap 2 | . . . . 1 1 Miscellaneous . | . . . . . . Route ------- -11/Scrapyard -10/Materials (discovered 3 exits: [*Mat] / Min / *Sub) -10/Subcaves (discovered 3 exits: *Mat x2 / *Rec) -7/Recycling -7/Scraptown (discovered 2 exits: [*Fac x2]) -5/Factory (discovered 5 exits: Fac x3 / Upp x2) History --------- Turn | Location | Event 10 | -11/Scrapyard | Discovered new exit (range 3) 159 | -11/Scrapyard | Entered Materials 197 | -10/Materials | Identified exit to Mines 263 | -10/Materials | Discovered new exit (range 4) 302 | -10/Materials | Build established: Mutant 799 | -10/Materials | Discovered new exit (range 13) 838 | -10/Materials | Entered Subcaves 1034 | -10/Subcaves | A swath of the cavern ceiling suddenly collapsed 1077 | -10/Subcaves | Learned location of Zion (-7) 1077 | -10/Subcaves | Met a Zionite searching for "candidates" 1162 | -10/Subcaves | Shifting Twisted Machinery released Mak. Flight Unit 1164 | -10/Subcaves | Shifting Twisted Machinery released Mak. Light Armor Plating 1803 | -10/Subcaves | Learned Materials garrison access intel 1973 | -10/Subcaves | Shifting Twisted Machinery released Battle Rifle 2028 | -10/Subcaves | Discovered new exit (range 8) 2386 | -10/Subcaves | Core integrity fell below 50% 2639 | -10/Subcaves | Shifting Twisted Machinery released Battle Cannon 2798 | -10/Subcaves | Visited Clippyterm 2803 | -10/Subcaves | Identified exit to Materials 2803 | -10/Subcaves | Identified exit to Recycling 2803 | -10/Subcaves | Learned Factory stockpile data 2969 | -10/Subcaves | Core integrity fell below 20% 3361 | -10/Subcaves | Lost 3 parts (1p1n1u) 3912 | -10/Subcaves | A swath of the cavern ceiling suddenly collapsed 4243 | -10/Subcaves | Visited 4L-MR0's lab 4271 | -10/Subcaves | Found Tower Shield 4272 | -10/Subcaves | Attached Tower Shield, gained temporary slots: Power, Propulsion x2, Utility x2, Weapon x2 4605 | -10/Subcaves | Build established: Derelict-Mutant 4666 | -10/Subcaves | Shifting Twisted Machinery released Sub. Optics 5253 | -10/Subcaves | Entered Recycling 5815 | -7/Recycling | Build established: Mutant 6055 | -7/Recycling | Scanned before Scraplab entrance 6084 | -7/Recycling | Entered Scraplab 6102 | -7/Recycling | Discovered new exit (range 3) 6106 | -7/Recycling | Entered Scraptown 6555 | -7/Scraptown | Scanned Subdweller tech in exchange for log data 6563 | -7/Scraptown | Learned 12 Factory zone layouts 6588 | -7/Scraptown | Discovered new exit (range 9) 6684 | -7/Scraptown | Visited The Evicted 6725 | -7/Scraptown | Visited Science Testing Area 6744 | -7/Scraptown | Visited Shadow of the Wyrm 6849 | -7/Scraptown | Visited UFD Registry 6849 | -7/Scraptown | Registered with UFD as "Nulltail" 6927 | -7/Scraptown | Visited Assassins FH 6945 | -7/Scraptown | Visited Red Mages 6962 | -7/Scraptown | Visited Comm Corps 7157 | -7/Scraptown | Visited Abandonware Association 7251 | -7/Scraptown | Delivered Scrap Shield to a Scientist 7317 | -7/Scraptown | Visited Junk Repository 7461 | -7/Scraptown | Visited Science Guys 7567 | -7/Scraptown | Visited Curators Association 7645 | -7/Scraptown | Visited Scrap Suit Storage 7713 | -7/Scraptown | Visited Scrapoid Research Area 7829 | -7/Scraptown | Visited Derelict Rescue Squad 7918 | -7/Scraptown | Learned abandonware demo "ERRANTS.EXE" 7918 | -7/Scraptown | Learned abandonware demo "KABOOM.EXE" 7963 | -7/Scraptown | Visited Junk Repository 8586 | -7/Scraptown | Guru changed UFD alias to "Wireflow" 8736 | -7/Scraptown | Visited Spacefarers 9499 | -7/Scraptown | Visited Cartography Club 9540 | -7/Scraptown | Found Surveybot 17 Chip 9859 | -7/Scraptown | Discovered new exit (range 5) 12403 | -7/Scraptown | Learned location of Lower Caves (-7) 12403 | -7/Scraptown | Learned location of Upper Caves (-4) 12403 | -7/Scraptown | Learned location of Warlord (-5) 12403 | -7/Scraptown | Learned 12 Materials zone layouts 12403 | -7/Scraptown | Learned 16 Research zone layouts 12403 | -7/Scraptown | Learned 4 Mines zone layouts 12403 | -7/Scraptown | Learned 16 Lower Caves zone layouts 12403 | -7/Scraptown | Learned 20 Lower Caves zone layouts 12403 | -7/Scraptown | Learned 16 Proximity Caves zone layouts 12403 | -7/Scraptown | Learned 4 Hub_04(d) zone layouts 12403 | -7/Scraptown | Learned Storage emergency access door positions 12403 | -7/Scraptown | Learned location of 3 exits from Factory 12403 | -7/Scraptown | Learned location of 3 exits from Lower Caves 12459 | -7/Scraptown | Found Deep Structural Scanner 12991 | -7/Scraptown | Found DRS Beacon 13190 | -7/Scraptown | Warned about trapping Scraptown 13240 | -7/Scraptown | Found Scrap Suit 13283 | -7/Scraptown | Entered Factory 13283 | -5/Factory | Evolved 10 slots: Power x1, Propulsion x2, Utility x7 13284 | -5/Factory | Identified exit to Upper Caves 13285 | -5/Factory | Identified exit to Factory 13576 | -5/Factory | System corruption reached 10% 13583 | -5/Factory | Self-destructed Last Messages --------------- 13439_ U-05 Engineer lays Concrete. 13484_ U-05 Engineer builds a Wall. 13550_ W-25 Informer sends out distress signal. 13562_ Destroyed Imp. Sensor Array. 13565_ Power Sword follow-up attack on W-25 Informer. 13565_ Destroyed Imp. Hover Unit. 13566_ Critical hit (Burn: +37). 13568_ ALERT: Security rotation in progress. 13573_ VSS Leg destroyed. 13575_ Mak. Hacking Suite destroyed. 13575_ Sml. Storage Unit destroyed. 13575_ System corrupted by crushing effect (+5). 13578_ Power Sword follow-up attack on B-60 Warrior. 13578_ Mic. Fission Core destroyed. 13578_ System corrupted by crushing effect (+5). 13580_ B-60 Warrior Hvy. Mace severed. 13581_ FFWU6KQRVTQDG:#KKRX0=3GSY&ZYJVVTL Map ----- +----------------------------------------------------+ | ??????????????????# #?????????????????? | | ??????????????###########+###########????????????? | | ??????????????# ############## | | ??????????????# # # | | ??????????????# + # | | ??????????????# # # | | ??????????????# # # | | ??????????????####+##### # # | | ??????????????# # # % # | | ??????????????# """ # # # | | ??????????????# """ # # # | | ??????????????# """ # # # | | ??????????????# # # # | | ??????????????# """ # # # | | ??????????????# """ ######## # # | | ??????????????# """ #???#### ###+########## | | ??????????????# #??????# # """" | | ??????????????######"###??????# # """" | | ????????????################### # """ | | ????????????# # # | | ????????????# """ """ """ """ # # | | ????????????# """ """ """ """ # # | | ????????????# """ """ """ """ # ###+### | | ????????????# # | | ????????????# b! + | | ????????????# g@! # !!! """" """ | | ????????????############/###### !!! """" """ | | ???????????????????????# #????# !!! """" """ | | ???????????????????????# #????# ^ | | ???????????????????????# #????# """" """" | | ???????????????????????# ???? """" """" | | ???????????? """ """ # """" """" | | ???????????? """ """ + "" "" | | ???????????? # ""T"" | | ???????????? """ """ # """ | | ???????????? """ """ #####+######### ####### | | ???????????? """ """ # #???# # | | ???????????? # #???# # """ | | ???????????? # #???# / "R | | ????????????############ #???# # """ | | ??????????????????#################### # | | ??????????????????# # # """ | | ??????????????????# """" """" """" # # """ | | ??????????????????# """" """" """" # # """ | | ??????????????????# """" """" """" # + | | ??????????????????# """" """" """" + # | | ??????????????????# # # | | ??????????????????# # ####### | | ??????????????????# + ## #??? | | ????????????############################+#######?? | +----------------------------------------------------+ Best States ------------- Heat Dissipation 40 Energy Generation 25 Energy Capacity 250 Matter Stores 300 Matter Capacity 300 Sight Range 16 Robot Scan Range 14 Terrain Scan Density 1210 Armor Coverage 2100 Evasion (%) 55 Recoil Reduction 6 Offensive Hacking 11 Item Schematics ----------------- None Robot Schematics ------------------ None Fabricated ------------ Nothing Alien Tech Used ----------------- None Achievements -------------- None Challenges ------------ None Game ------ Seed ThrusterSiegeMegatreads Manual? 0 Play Time 00:53:52 Cumulative 78.0 hours Start 2024.08.29 @ 18:36:07 End 2024.08.29 @ 20:07:47 Sessions 1 Manual Loads 0 Difficulty Rogue Special Mode None Game No. 130 Rogue 126 Adventurer 4 Explorer 0 Win Type - Total 0 Types 0/0/0/0/0/0/0/0/0 Lore% 37 Gallery% 46 Achievement% 35 Wizard Run 0 Options --------- Layout 2 ASCII 0 Keyboard 0 Movement Mouse Keybinds 0 Fullscreen 2 Font 24/Smallcaps Map View 50x44 Zoom Use 0% Tactical HUD 1 Map Filters NONE Filters NONE Steam 1 RUN: b248bae5-ab07-4165-ae16-475cae8bc860